bitfinex-derivatives/quotes_BTCF0:USTF0_20250912
["timestamp","ask_amount","ask_price","bid_price","bid_amount"]
[1757646440366,1.25504609,115340.0,115330.0,0.28862181]
[1757646440762,1.37916238,115340.0,115330.0,0.28862181]
[1757646440971,1.25504609,115340.0,115330.0,0.28862181]
[1757646441870,1.1309298,115340.0,115330.0,0.28862181]
[1757646442068,1.25504609,115340.0,115330.0,0.28862181]
[1757646442268,1.25500609,115340.0,115330.0,0.28862181]
[1757646442869,0.46684609,115340.0,115330.0,0.28862181]
[1757646443071,1.25500609,115340.0,115330.0,0.28862181]
[1757646445073,0.46684609,115340.0,115330.0,0.28862181]
[1757646445268,0.321,115340.0,115330.0,0.9627381]
[1757646445774,0.321,115340.0,115330.0,1.0127381]
[1757646446176,0.34312,115340.0,115330.0,0.5927381]
[1757646446677,0.321,115340.0,115330.0,0.4127381]
[1757646446976,0.321,115340.0,115330.0,0.9127381]
[1757646450383,0.50706298,115340.0,115330.0,0.97468479]
[1757646452383,0.52918298,115340.0,115330.0,0.97468479]
[1757646454074,0.34312,115340.0,115330.0,0.97468479]
[1757646454269,0.52918298,115340.0,115330.0,0.97468479]
[1757646456685,0.321,115340.0,115330.0,0.97468479]
[1757646459279,0.321,115340.0,115330.0,0.72468479]
[1757646459982,0.321,115340.0,115330.0,0.81135909]
[1757646460184,0.321,115340.0,115330.0,0.99742207]
[1757646460385,0.321,115340.0,115330.0,0.91074777]
[1757646460585,0.34312,115340.0,115330.0,1.51256479]
[1757646461491,0.321,115340.0,115330.0,1.51256479]
[1757646462090,0.321,115340.0,115330.0,1.86113909]
[1757646467198,0.321,115340.0,115330.0,1.67507611]
[1757646467501,0.321,115340.0,115330.0,1.86113909]
[1757646468398,0.321,115340.0,115330.0,1.07325909]
[1757646468598,0.321,115340.0,115330.0,1.67495611]
[1757646468793,0.321,115340.0,115330.0,1.86101909]
[1757646470497,0.321,115340.0,115330.0,0.98658479]
[1757646470798,0.321,115340.0,115330.0,1.86097909]
[1757646470998,0.50706298,115340.0,115330.0,1.86097909]
[1757646471200,0.321,115340.0,115330.0,1.86097909]
[1757646474703,0.52876298,115340.0,115330.0,0.80052181]
[1757646475003,0.52876298,115340.0,115330.0,1.77426479]
[1757646475202,0.3427,115340.0,115330.0,1.77426479]
[1757646475503,0.52876298,115340.0,115330.0,1.58820181]
[1757646475706,0.52876298,115340.0,115330.0,1.77426479]
[1757646477399,0.3427,115340.0,115330.0,1.77426479]
[1757646477704,0.52876298,115340.0,115330.0,1.77426479]
[1757646479803,0.52876298,115340.0,115330.0,1.51236479]
[1757646481908,0.51467299,115340.0,115330.0,1.51236479]
[1757646487910,0.70073597,115340.0,115330.0,0.72468479]
[1757646488103,0.96406597,115340.0,115330.0,0.02490181]
[1757646499725,0.96406597,115340.0,115330.0,0.00330181]
[1757646500022,0.96406597,115340.0,115330.0,0.02555181]
[1757646501010,0.59194001,115340.0,115330.0,0.02555181]
[1757646501219,0.96406597,115340.0,115330.0,0.03890181]
[1757646501522,0.96406597,115340.0,115330.0,0.39496479]
[1757646501723,0.96406597,115340.0,115330.0,0.20890181]
[1757646501923,0.96406597,115340.0,115330.0,0.03890181]
[1757646503514,0.96406597,115340.0,115330.0,0.02555181]
[1757646505427,0.59194001,115340.0,115330.0,0.02555181]
[1757646505618,0.96406597,115340.0,115330.0,0.02555181]
[1757646508529,1.75154597,115340.0,115330.0,0.02555181]
[1757646508725,1.75154597,115340.0,115330.0,0.21161479]
[1757646509233,1.75154597,115340.0,115330.0,0.02555181]
[1757646509426,1.75154597,115340.0,115330.0,0.21161479]
[1757646511330,1.75154597,115340.0,115330.0,0.02555181]
[1757646512330,1.62757773,115340.0,115330.0,0.02555181]
[1757646517634,0.59009773,115340.0,115330.0,0.00330181]
[1757646517843,1.39806139,115340.0,115330.0,0.00330181]
[1757646518237,1.39806139,115340.0,115330.0,0.02557181]
[1757646525860,1.39806139,115340.0,115330.0,0.00330181]
[1757646526160,1.39806139,115340.0,115330.0,0.02557181]
[1757646527360,0.61066139,115340.0,115330.0,0.02557181]
[1757646527754,1.39802139,115340.0,115330.0,0.02557181]
[1757646530562,1.39802139,115340.0,115330.0,0.00330181]
[1757646530753,1.39802139,115340.0,115330.0,0.02557181]
[1757646537763,0.61066139,115340.0,115330.0,0.02557181]
[1757646537968,1.39794139,115340.0,115330.0,0.02557181]
[1757646538364,0.36250367,115340.0,115330.0,0.02557181]
[1757646538566,1.39794139,115340.0,115330.0,0.02557181]
[1757646539961,0.32861001,115340.0,115330.0,0.34344067]
[1757646540267,0.45268887,115340.0,115330.0,0.32344067]
[1757646540471,0.45268887,115340.0,115330.0,0.19936181]
[1757646540666,0.45268887,115340.0,115330.0,0.03936181]
[1757646546471,0.45268887,115340.0,115330.0,0.20936181]
[1757646546858,0.30691001,115340.0,115330.0,0.98344067]
[1757646549365,0.32930001,115340.0,115330.0,0.85936181]
[1757646549571,0.32930001,115340.0,115330.0,0.98344067]
[1757646550266,0.45337887,115340.0,115330.0,0.98344067]
[1757646552078,0.32930001,115340.0,115330.0,0.98344067]
[1757646553077,0.30691001,115340.0,115330.0,0.98344067]
[1757646554065,0.30691001,115340.0,115330.0,1.19419373]
[1757646554270,0.23691001,115340.0,115330.0,1.19419373]
[1757646556978,0.23691001,115340.0,115330.0,1.98123373]
[1757646557177,0.23691001,115340.0,115330.0,1.19419373]
[1757646557378,0.23691001,115340.0,115330.0,1.98123373]
[1757646559579,0.23691001,115340.0,115330.0,2.24309373]
[1757646559781,0.23691001,115340.0,115330.0,1.99493601]
[1757646560073,0.23691001,115340.0,115330.0,1.36941953]
[1757646560271,0.23691001,115340.0,115330.0,2.15641953]
[1757646560874,0.23691001,115340.0,115330.0,1.35562953]
[1757646561073,0.25053001,115340.0,115330.0,1.35562953]
[1757646561378,0.25053001,115340.0,115330.0,2.14258953]
[1757646561778,0.25053001,115340.0,115330.0,1.88068953]
[1757646562681,0.23691001,115340.0,115330.0,1.96736413]
[1757646563882,0.23691001,115340.0,115330.0,2.11126413]
[1757646565683,0.23691001,115340.0,115330.0,1.32430413]
[1757646565883,0.23691001,115340.0,115330.0,2.37312413]
[1757646566982,0.24967001,115340.0,115330.0,1.12545067]
[1757646567184,0.24967001,115340.0,115330.0,1.64439181]
[1757646567384,0.24967001,115340.0,115330.0,1.76847067]
[1757646567586,0.64662887,115340.0,115330.0,1.64435181]
[1757646567783,0.52255001,115340.0,115330.0,1.76843067]
[1757646569481,0.52255001,115340.0,115330.0,1.78613021]
[1757646569682,0.52255001,115340.0,115330.0,1.76843067]
[1757646570382,0.52255001,115340.0,115330.0,1.64435181]
[1757646570586,0.49967001,115340.0,115330.0,1.76843067]
[1757646571187,0.49967001,115340.0,115330.0,1.78608134]
[1757646571684,0.49967001,115340.0,115330.0,1.52418134]
[1757646572275,0.49967001,115340.0,115330.0,1.58616357]
[1757646572982,0.49967001,115340.0,115330.0,1.58613075]
[1757646577690,0.49967001,115340.0,115330.0,1.84803075]
[1757646579293,0.24967001,115340.0,115330.0,1.84803075]
[1757646580089,0.24967001,115340.0,115330.0,1.66196966]
[1757646580282,0.24967001,115340.0,115330.0,1.84803075]
[1757646581394,0.24967001,115340.0,115330.0,2.03409184]
[1757646581793,0.23691001,115340.0,115330.0,2.28409184]
[1757646581999,0.23691001,115340.0,115330.0,2.37076644]
[1757646589500,0.23691001,115340.0,115330.0,2.12076644]
[1757646589697,0.23191001,115340.0,115330.0,2.55682753]
[1757646589894,0.23191001,115340.0,115330.0,2.37076644]
[1757646591606,0.29760001,115340.0,115330.0,2.37076644]
[1757646592405,0.29760001,115340.0,115330.0,2.52676957]
[1757646592597,0.29760001,115340.0,115330.0,2.71283066]
[1757646592797,0.29760001,115340.0,115330.0,2.52676957]
[1757646593709,0.29760001,115340.0,115330.0,2.71283066]
[1757646595704,0.29760001,115340.0,115330.0,2.55682753]
[1757646600222,0.29760001,115340.0,115330.0,1.21176426]
[1757646600523,0.33208001,115340.0,115330.0,1.84779075]
[1757646600819,0.33208001,115340.0,115330.0,2.03385184]
[1757646601318,0.29760001,115340.0,115330.0,2.12052644]
[1757646601820,0.29760001,115340.0,115330.0,2.26442644]
[1757646606926,0.29760001,115340.0,115330.0,2.42042957]
[1757646608430,0.29760001,115340.0,115330.0,2.26442644]
[1757646610230,0.29760001,115340.0,115330.0,2.42042957]
[1757646613632,0.29760001,115340.0,115330.0,2.60649066]
[1757646613832,0.19011648,115340.0,115330.0,2.60649066]
[1757646614130,0.38669,115340.0,115330.0,2.26442644]
[1757646615428,0.21241,115340.0,115330.0,2.45048753]
[1757646618926,0.2257,115340.0,115330.0,0.87508966]
[1757646619127,0.49689,115340.0,115330.0,1.66168966]
[1757646619332,0.49689,115340.0,115330.0,1.84775075]
[1757646619833,0.49689,115340.0,115330.0,2.00371561]
[1757646620134,0.68295109,115340.0,115330.0,1.21711561]
[1757646620432,0.68295109,115340.0,115330.0,2.00367561]
[1757646620628,0.68295109,115340.0,115330.0,1.84771075]
[1757646621731,0.49689,115340.0,115330.0,1.84771075]
[1757646623130,0.49689,115340.0,115330.0,1.99161075]
[1757646623335,0.49689,115340.0,115330.0,1.84771075]
[1757646623843,0.49689,115340.0,115330.0,2.00367561]
[1757646626242,0.49689,115340.0,115330.0,1.84771075]
[1757646629942,0.68295109,115340.0,115330.0,1.84771075]
[1757646632035,0.49689,115340.0,115330.0,1.84771075]
[1757646632235,0.68295109,115340.0,115330.0,1.84771075]
[1757646632645,0.68295109,115340.0,115330.0,2.00367561]
[1757646632837,0.49689,115340.0,115330.0,2.00367561]
[1757646633338,0.49689,115340.0,115330.0,2.14757561]
[1757646633940,0.49689,115340.0,115330.0,2.00367561]
[1757646634348,0.49689,115340.0,115330.0,1.9416519]
[1757646637553,0.49689,115340.0,115330.0,1.81761452]
[1757646637752,0.49689,115340.0,115330.0,1.9416519]
[1757646639254,0.24689,115340.0,115330.0,1.9416519]
[1757646643456,0.24689,115340.0,115330.0,1.81761452]
[1757646643662,0.24689,115340.0,115330.0,1.9416519]
[1757646643957,0.24689,115340.0,115330.0,1.1550919]
[1757646644158,0.24689,115340.0,115330.0,1.9416119]
[1757646647458,0.24689,115340.0,115330.0,1.1550919]
[1757646647653,0.24689,115340.0,115330.0,1.9416119]
[1757646648559,0.24689,115340.0,115330.0,1.1550919]
[1757646648748,0.24689,115340.0,115330.0,1.9416119]
[1757646652060,0.24689,115340.0,115330.0,1.78564704]
[1757646655275,0.24689,115340.0,115330.0,1.9416119]
[1757646657070,0.24689,115340.0,115330.0,1.78564704]
[1757646668882,0.24689,115340.0,115330.0,1.66160966]
[1757646669074,0.24689,115340.0,115330.0,1.78564704]
[1757646669784,0.24689,115340.0,115330.0,1.9416119]
[1757646671377,0.24689,115340.0,115330.0,1.78564704]
[1757646672781,0.24689,115340.0,115330.0,1.66160966]
[1757646672986,0.24689,115340.0,115330.0,1.78564704]
[1757646682998,0.37092738,115340.0,115330.0,0.87508966]
[1757646683202,0.62092738,115340.0,115330.0,1.35962181]
[1757646683402,0.74496476,115340.0,115330.0,1.35962181]
[1757646683810,0.62092738,115340.0,115330.0,1.35962181]
[1757646688113,0.49689,115340.0,115330.0,1.35962181]
[1757646688413,0.62092738,115340.0,115330.0,1.35962181]
[1757646693716,0.49689,115340.0,115330.0,1.35962181]
[1757646693916,0.62092738,115340.0,115330.0,1.35962181]
[1757646696116,0.62092738,115340.0,115330.0,1.48365919]
[1757646696314,0.68296915,115340.0,115330.0,1.54570096]
[1757646699415,0.43296915,115340.0,115330.0,1.54570096]
[1757646705823,0.24689,115340.0,115330.0,1.54570096]
[1757646710025,0.24689,115340.0,115330.0,1.79570096]
[1757646715635,0.24689,115340.0,115330.0,1.79570096]
[1757646720735,0.24689,115340.0,115330.0,1.00938096]
[1757646720936,0.24689,115340.0,115330.0,1.79546096]
[1757646721326,0.43296915,115340.0,115330.0,1.00938096]
[1757646721526,0.43296915,115340.0,115330.0,1.79546096]
[1757646722130,0.24689,115340.0,115330.0,1.79546096]
[1757646722331,0.43296915,115340.0,115330.0,1.79546096]
[1757646724037,0.43296915,115340.0,115330.0,1.00938096]
[1757646724235,0.43296915,115340.0,115330.0,1.79546096]
[1757646725236,0.24689,115340.0,115330.0,1.79546096]
[1757646725541,0.43296915,115340.0,115330.0,1.79546096]
[1757646729640,0.43296915,115340.0,115330.0,1.00938096]
[1757646729841,0.43296915,115340.0,115330.0,1.79538096]
[1757646730540,0.24689,115340.0,115330.0,1.79538096]
[1757646730736,0.43296915,115340.0,115330.0,1.79538096]
[1757646730938,0.43296915,115340.0,115330.0,1.79534096]
[1757646731742,0.24689,115340.0,115330.0,1.79534096]
[1757646732040,0.43296915,115340.0,115330.0,1.79534096]
[1757646732743,0.24689,115340.0,115330.0,1.79534096]
[1757646736646,0.43296915,115340.0,115330.0,1.79534096]
[1757646737646,0.24689,115340.0,115330.0,1.79534096]
[1757646738948,0.2257,115340.0,115330.0,1.81809451]
[1757646739637,0.24819,115340.0,115330.0,0.94546011]
[1757646739842,0.24819,115340.0,115330.0,1.54526096]
[1757646740043,0.43426915,115340.0,115330.0,1.54526096]
[1757646740338,0.24819,115340.0,115330.0,1.54526096]
[1757646740543,0.43426915,115340.0,115330.0,1.54526096]
[1757646741652,0.43426915,115340.0,115330.0,0.75938096]
[1757646741956,0.43426915,115340.0,115330.0,1.54526096]
[1757646743856,0.43426915,115340.0,115330.0,0.75938096]
[1757646744056,0.43426915,115340.0,115330.0,1.54526096]
[1757646750163,0.43426915,115340.0,115330.0,1.35918181]
[1757646750351,0.43426915,115340.0,115330.0,1.54526096]
[1757646750860,0.6203483,115340.0,115330.0,0.57330181]
[1757646751164,0.6203483,115340.0,115330.0,1.54514096]
[1757646752165,0.24819,115340.0,115330.0,1.54514096]
[1757646752355,0.6203483,115340.0,115330.0,1.54514096]
[1757646752959,0.6203483,115340.0,115330.0,0.75938096]
[1757646753157,1.86256626,115340.0,115310.0,0.15596486]
[1757646753360,0.4064683,115320.0,115310.0,0.15596486]
[1757646753560,0.7364683,115320.0,115310.0,0.56226]
[1757646753757,0.7364683,115320.0,115310.0,0.57072453]
[1757646754465,0.7364683,115320.0,115310.0,0.55072453]
[1757646755166,0.7374683,115320.0,115310.0,0.55372453]
[1757646755365,0.72337548,115320.0,115310.0,0.55372453]
[1757646755666,0.73666548,115320.0,115310.0,0.55372453]
[1757646756063,0.73766548,115320.0,115310.0,0.55572453]
[1757646756562,0.48962051,115320.0,115310.0,0.55572453]
[1757646756966,0.61373384,115320.0,115310.0,0.55572453]
[1757646768872,1.39953384,115320.0,115310.0,0.55572453]
[1757646781285,1.39949384,115320.0,115310.0,0.55572453]
[1757646785891,1.52360717,115320.0,115310.0,0.005]
[1757646786093,0.03638,115310.0,115300.0,0.10093962]
[1757646786295,0.57460666,115310.0,115300.0,0.68093962]
[1757646786687,0.45049333,115310.0,115300.0,0.68093962]
[1757646786885,0.57460666,115310.0,115300.0,0.68093962]
[1757646787090,0.57460666,115310.0,115300.0,0.10093962]
[1757646787293,0.45049333,115310.0,115300.0,0.10093962]
[1757646788595,0.45149333,115310.0,115300.0,0.10293962]
[1757646788990,0.45249333,115310.0,115300.0,0.10593962]
[1757646790197,1.23821333,115310.0,115300.0,0.10593962]
[1757646790897,0.45249333,115310.0,115300.0,0.72593962]
[1757646791097,1.23821333,115310.0,115300.0,0.72593962]
[1757646792193,1.23821333,115310.0,115300.0,0.10593962]
[1757646798098,1.23821333,115310.0,115300.0,0.61593962]
[1757646799500,0.32838,115310.0,115300.0,0.61593962]
[1757646799700,1.06905333,115310.0,115300.0,0.61593962]
[1757646802697,1.24193333,115310.0,115300.0,0.61593962]
[1757646804904,1.61604666,115310.0,115300.0,0.02682]
[1757646805209,1.61604666,115310.0,115300.0,0.0056]
[1757646807210,1.61604666,115310.0,115300.0,0.01418622]
[1757646807609,1.61604666,115310.0,115300.0,0.0056]
[1757646808111,1.61604666,115310.0,115300.0,0.58727]
[1757646810310,0.57838,115310.0,115300.0,0.58727]
[1757646810515,1.49213333,115310.0,115300.0,0.59603528]
[1757646813807,1.61624666,115310.0,115300.0,0.59603528]
[1757646817217,1.61624666,115310.0,115300.0,0.0056]
[1757646817612,1.61624666,115310.0,115300.0,0.01432822]
[1757646818115,1.61624666,115310.0,115300.0,0.0056]
[1757646818323,1.74051248,115310.0,115300.0,0.0056]
[1757646819219,1.74051248,115310.0,115300.0,0.5456]
[1757646819420,1.49051248,115310.0,115300.0,0.5456]
[1757646820525,1.49051248,115310.0,115300.0,0.56727]
[1757646821525,1.49051248,115310.0,115300.0,0.57590328]
[1757646822225,1.49051248,115310.0,115300.0,0.5456]
[1757646822419,1.49051248,115310.0,115300.0,0.56727]
[1757646823423,1.30426624,115310.0,115300.0,0.56727]
[1757646823626,1.49051248,115310.0,115300.0,0.57594756]
[1757646824129,1.49051248,115310.0,115300.0,0.56727]
[1757646824332,1.49051248,115310.0,115300.0,0.5456]
[1757646826422,1.49639248,115310.0,115300.0,0.56727]
[1757646826727,1.49639248,115310.0,115300.0,0.5456]
[1757646827427,1.49639248,115310.0,115300.0,0.5446]
[1757646828725,1.49639248,115310.0,115300.0,0.5436]
[1757646830531,1.49639248,115310.0,115300.0,0.0036]
[1757646830834,1.50505953,115310.0,115300.0,0.0036]
[1757646831031,1.49639248,115310.0,115300.0,0.0036]
[1757646832032,1.49807248,115310.0,115300.0,0.02527]
[1757646835133,1.1255,115310.0,115300.0,0.02527]
[1757646835337,1.49799248,115310.0,115300.0,0.02527]
[1757646837340,0.70087248,115310.0,115300.0,0.02527]
[1757646837539,1.49767248,115310.0,115300.0,0.02527]
[1757646839236,0.70087248,115310.0,115300.0,0.55527]
[1757646839436,1.49739248,115310.0,115300.0,0.02527]
[1757646839742,1.49739248,115310.0,115300.0,0.0036]
[1757646840541,1.49739248,115310.0,115300.0,0.02595]
[1757646853447,1.1249,115310.0,115300.0,0.02595]
[1757646853751,1.49739248,115310.0,115300.0,0.02595]
[1757646854944,0.70087248,115310.0,115300.0,0.02595]
[1757646855150,1.49619248,115310.0,115300.0,0.02595]
[1757646855744,0.70087248,115310.0,115300.0,0.02595]
[1757646855951,1.49627248,115310.0,115300.0,0.02595]
[1757646856252,1.49619248,115310.0,115300.0,0.61595]
[1757646856548,1.49619248,115310.0,115300.0,0.02595]
[1757646861450,1.49619248,115310.0,115300.0,0.0036]
[1757646873254,1.49619248,115310.0,115300.0,0.5736]
[1757646876660,1.49619248,115310.0,115300.0,0.59518]
[1757646877854,1.49407248,115310.0,115300.0,0.59518]
[1757646879061,0.70087248,115310.0,115300.0,0.59518]
[1757646879264,1.49399248,115310.0,115300.0,0.59518]
[1757646879460,0.70087248,115310.0,115300.0,0.59518]
[1757646879756,1.49403248,115310.0,115300.0,0.59518]
[1757646880461,1.24568737,115310.0,115300.0,0.59518]
[1757646881456,1.36983474,115310.0,115300.0,0.59518]
[1757646882864,1.12154,115310.0,115300.0,0.59518]
[1757646883066,1.36983474,115310.0,115300.0,0.59518]
[1757646883265,1.36959474,115310.0,115300.0,0.59518]
[1757646883866,0.57667474,115310.0,115300.0,0.59518]
[1757646884069,1.36955474,115310.0,115300.0,0.59518]
[1757646884768,1.12126,115310.0,115300.0,0.59518]
[1757646884968,1.36955474,115310.0,115300.0,0.59518]
[1757646885268,1.36959474,115310.0,115300.0,0.59518]
[1757646886070,1.24544737,115310.0,115300.0,0.59518]
[1757646886370,1.36959474,115310.0,115300.0,0.59518]
[1757646891983,1.1213,115310.0,115300.0,0.59518]
[1757646892177,0.32838,115310.0,115300.0,0.71932737]
[1757646892382,0.45252737,115310.0,115300.0,0.96932737]
[1757646892577,0.45252737,115310.0,115300.0,0.84518]
[1757646895884,0.32838,115310.0,115300.0,0.84518]
[1757646896083,0.45252737,115310.0,115300.0,0.84518]
[1757646897887,0.32838,115310.0,115300.0,0.84518]
[1757646898084,0.45252737,115310.0,115300.0,0.84518]
[1757646902790,0.32838,115310.0,115300.0,0.84518]
[1757646903085,0.45252737,115310.0,115300.0,0.84518]
[1757646903490,0.31482,115310.0,115300.0,0.97919737]
[1757646903788,0.31482,115310.0,115300.0,1.10334474]
[1757646903988,0.31482,115310.0,115300.0,2.03421737]
[1757646904687,0.43896737,115310.0,115300.0,2.03421737]
[1757646907589,0.43896737,115310.0,115300.0,2.03381737]
[1757646907788,0.32839,115310.0,115300.0,1.10708]
[1757646907980,0.32839,115310.0,115300.0,1.8998]
[1757646907981,0.45253737,115310.0,115300.0,1.8998]
[1757646909582,0.45253737,115310.0,115300.0,1.40976]
[1757646910089,0.45253737,115310.0,115300.0,1.40984]
[1757646910986,0.45253737,115310.0,115300.0,0.61708]
[1757646911185,0.45253737,115310.0,115300.0,1.40972]
[1757646914189,0.45253737,115310.0,115300.0,0.3455]
[1757646914396,1.81147826,115310.0,115300.0,0.0036]
[1757646914691,1.68733089,115310.0,115300.0,0.0036]
[1757646915692,1.69598848,115310.0,115300.0,0.0036]
[1757646916094,1.69498848,115310.0,115300.0,0.0026]
[1757646916292,0.03602,115280.0,115270.0,0.55848486]
[1757646916495,0.70760259,115280.0,115270.0,0.17920486]
[1757646916797,0.70760259,115280.0,115270.0,0.15596486]
[1757646917191,0.32159048,115280.0,115270.0,0.03182969]
[1757646917394,0.44573785,115280.0,115270.0,0.19508969]
[1757646917889,0.44673785,115280.0,115270.0,0.55808969]
[1757646918096,0.44773785,115280.0,115270.0,0.58008969]
[1757646918297,0.32359048,115280.0,115270.0,0.58008969]
[1757646918487,0.32359048,115280.0,115270.0,0.05008969]
[1757646918685,0.44773785,115280.0,115270.0,0.22008969]
[1757646918891,0.44773785,115280.0,115270.0,0.56423706]
[1757646919099,0.32259048,115280.0,115270.0,0.81123706]
[1757646919287,0.322,115280.0,115270.0,0.81223706]
[1757646919491,0.322,115280.0,115270.0,0.96820192]
[1757646920900,0.34445,115280.0,115270.0,0.96820192]
[1757646921601,0.60674474,115280.0,115270.0,0.21546486]
[1757646921804,0.85674474,115280.0,115270.0,0.20220486]
[1757646922103,0.85674474,115280.0,115270.0,0.02624]
[1757646923506,0.60845,115280.0,115270.0,0.003]
[1757646923705,0.85674474,115280.0,115270.0,0.003]
[1757646924308,0.85674474,115280.0,115270.0,0.02591]
[1757646926410,0.84264603,115280.0,115270.0,0.02591]
[1757646929317,0.84264603,115280.0,115270.0,0.003]
[1757646929513,0.9667934,115280.0,115250.0,0.15596486]
[1757646929814,0.9667934,115280.0,115250.0,0.73887486]
[1757646929815,0.28441474,115260.0,115250.0,0.73887486]
[1757646930018,0.28441474,115260.0,115250.0,0.58291]
[1757646930019,0.59031603,115260.0,115250.0,0.58291]
[1757646930310,0.59031603,115260.0,115250.0,0.02291]
[1757646930718,0.59031603,115260.0,115250.0,0.02391]
[1757646931018,0.59031603,115260.0,115250.0,0.001]
[1757646931211,0.59031603,115260.0,115250.0,0.02391]
[1757646931714,0.59031603,115260.0,115250.0,0.02491]
[1757646932416,0.59031603,115260.0,115250.0,0.02391]
[1757646932613,0.59231603,115260.0,115250.0,0.02491]
[1757646933319,0.66143293,115260.0,115250.0,0.02491]
[1757646934814,0.66143293,115260.0,115250.0,0.002]
[1757646935024,1.0355803,115260.0,115250.0,0.002]
[1757646936922,1.45395293,115260.0,115250.0,0.02491]
[1757646937117,0.53628556,115260.0,115250.0,0.02391]
[1757646937319,0.52418655,115260.0,115250.0,0.28668]
[1757646937512,0.45506965,115260.0,115250.0,0.80082737]
[1757646937713,0.45406965,115260.0,115250.0,0.79982737]
[1757646937913,0.45506965,115260.0,115250.0,0.80082737]
[1757646938212,0.45506965,115260.0,115250.0,0.67668]
[1757646938712,0.30890129,115260.0,115250.0,1.59330737]
[1757646939413,0.30890129,115260.0,115250.0,1.34330737]
[1757646939723,0.45516866,115260.0,115250.0,1.21912]
[1757646939915,0.45516866,115260.0,115250.0,1.46912]
[1757646940121,0.45516866,115260.0,115250.0,0.26668]
[1757646940423,0.33102129,115260.0,115250.0,0.26668]
[1757646940623,0.70374563,115260.0,115250.0,0.26668]
[1757646943419,0.71104563,115260.0,115250.0,0.26668]
[1757646944820,0.70374563,115260.0,115250.0,0.26668]
[1757646945025,0.70374563,115260.0,115250.0,0.25668]
[1757646951328,0.70374563,115260.0,115250.0,0.76304217]
[1757646952530,0.70374563,115260.0,115250.0,1.36808]
[1757646953024,0.70374563,115260.0,115250.0,1.36804]
[1757646953227,0.70374563,115260.0,115250.0,0.57668]
[1757646953535,0.70374563,115260.0,115250.0,1.368]
[1757646954131,0.70374563,115260.0,115250.0,1.028]
[1757646954443,0.70374563,115260.0,115250.0,1.02792]
[1757646954627,0.71104563,115260.0,115250.0,0.23668]
[1757646954821,0.96104563,115260.0,115250.0,1.01511]
[1757646955016,0.96104563,115260.0,115250.0,0.001]
[1757646955017,1.1474078,115260.0,115250.0,0.001]
[1757646955522,1.9387278,115260.0,115250.0,0.001]
[1757646968338,1.96522761,115260.0,115250.0,0.0242]
[1757646968540,1.17390761,115260.0,115250.0,0.0242]
[1757646968730,1.96434761,115260.0,115250.0,0.0242]
[1757646969133,1.96434761,115260.0,115250.0,0.001]
[1757646969446,1.9378478,115260.0,115250.0,0.001]
[1757646969841,1.9378478,115260.0,115250.0,0.0242]
[1757646970241,1.9378478,115260.0,115250.0,0.001]
[1757646970744,1.9380078,115260.0,115250.0,0.001]
[1757646973736,1.96429845,115260.0,115250.0,0.0242]
[1757646974442,1.96429845,115260.0,115250.0,0.001]
[1757646975535,1.9378078,115260.0,115250.0,0.001]
[1757646977839,1.75144563,115260.0,115250.0,0.001]
[1757646979338,1.49386563,115260.0,115250.0,0.03694]
[1757646980343,1.50116563,115260.0,115250.0,0.0242]
[1757646981645,0.33102129,115260.0,115250.0,0.62364217]
[1757646981844,0.33102129,115260.0,115250.0,0.99364217]
[1757646982043,0.51738346,115260.0,115250.0,0.99364217]
[1757646982341,0.70374563,115260.0,115250.0,0.99364217]
[1757646982547,0.51738346,115260.0,115250.0,0.99364217]
[1757646982846,0.70374563,115260.0,115250.0,0.80728]
[1757646983342,0.70374563,115260.0,115250.0,0.87728]
[1757646983545,0.70374563,115260.0,115250.0,0.43728]
[1757646983737,0.71104563,115260.0,115250.0,0.0242]
[1757646984245,0.71104563,115260.0,115250.0,0.03728]
[1757646985546,0.70374563,115260.0,115250.0,0.03728]
[1757646986247,0.71104563,115260.0,115250.0,0.0242]
[1757646986944,0.70374563,115260.0,115250.0,0.03728]
[1757646987353,0.71104563,115260.0,115250.0,0.001]
[1757646987754,0.71104563,115260.0,115250.0,0.02334]
[1757646989345,1.50112563,115260.0,115250.0,0.02334]
[1757646989546,1.50112563,115260.0,115250.0,0.03642]
[1757646990146,1.6874878,115260.0,115250.0,0.001]
[1757646990750,1.9374878,115260.0,115250.0,0.001]
[1757646994957,1.1474078,115260.0,115250.0,0.001]
[1757646995152,1.9372878,115260.0,115250.0,0.001]
[1757646995646,1.74342563,115260.0,115250.0,0.03642]
[1757646996760,0.95374563,115260.0,115250.0,0.03642]
[1757646996952,1.12070129,115260.0,115250.0,0.03642]
[1757646997147,1.49342563,115260.0,115250.0,0.03642]
[1757646997859,0.70374563,115260.0,115250.0,0.03642]
[1757646998055,1.49346563,115260.0,115250.0,0.03642]
[1757646999158,0.70374563,115260.0,115250.0,0.03642]
[1757646999358,1.49358563,115260.0,115250.0,0.03642]
[1757647000353,0.57951407,115260.0,115250.0,0.03642]
[1757647000560,1.24506768,115260.0,115250.0,0.20642]
[1757647000763,1.24506768,115260.0,115250.0,0.03642]
[1757647000959,1.24494768,115260.0,115250.0,0.03642]
[1757647001460,1.36919407,115260.0,115250.0,0.03642]
[1757647002059,1.24494768,115260.0,115250.0,0.03642]
[1757647002662,0.33102129,115260.0,115250.0,0.03642]
[1757647002860,0.45526768,115260.0,115250.0,0.03642]
[1757647003363,0.45526768,115260.0,115250.0,0.19642]
[1757647004361,0.45526768,115260.0,115250.0,0.95066639]
[1757647004362,0.30890129,115260.0,115250.0,0.95066639]
[1757647004659,0.30890129,115260.0,115250.0,1.05517467]
[1757647004863,0.30890129,115260.0,115250.0,1.17942106]
[1757647005062,0.30890129,115260.0,115250.0,1.05517467]
[1757647006972,0.30890129,115260.0,115250.0,1.84521467]
[1757647008070,0.30890129,115260.0,115250.0,1.84505467]
[1757647013677,0.30890129,115260.0,115250.0,2.10695467]
[1757647020175,0.30890129,115260.0,115250.0,1.96930106]
[1757647020477,0.04176697,115290.0,115280.0,0.03661]
[1757647020681,0.33054697,115290.0,115280.0,1.30290278]
[1757647021075,0.33054697,115290.0,115280.0,1.17865639]
[1757647021876,0.33554697,115290.0,115280.0,1.17865639]
[1757647022882,0.33754697,115290.0,115280.0,1.39061648]
[1757647023285,0.317,115290.0,115280.0,1.39061648]
[1757647026985,0.317,115290.0,115280.0,1.64061648]
[1757647027182,0.01363,115320.0,115280.0,1.98217442]
[1757647027385,0.01363,115320.0,115310.0,0.33518398]
[1757647027386,0.04363,115320.0,115310.0,0.33518398]
[1757647027586,0.34485,115320.0,115310.0,1.44090393]
[1757647027885,0.34485,115320.0,115310.0,1.52759513]
[1757647028390,0.34485,115320.0,115310.0,1.59650866]
[1757647028685,0.32863,115320.0,115310.0,1.60531861]